[Event "1st Bella Italia International 2022"]
[Site "Lignano"]
[Date "2022.08.18"]
[Round "3.7"]
[White "Cappelletto, Joshuaede"]
[Black "Bettalli, Francesco"]
[Result "0-1"]
[ECO "B36"]
[WhiteElo "2266"]
[BlackElo "2237"]
[Annotator "NA RC"]
[PlyCount "112"]
[EventDate "2022.08.18"]
[EventCountry "ITA"]
[SourceTitle "playchess.com"]
[Source "ChessBase"]
[SourceQuality "1"]
[TimeControl "5400+30"]

1. c4 {[%emt 0:01:51]} c5 {[%emt 0:04:36]} 2. Nf3 {[%emt 0:00:13]} g6 {[%emt 0:00:04]} 3. d4 {[%emt 0:00:06]} cxd4 {[%emt 0:00:03]} 4. Nxd4 {[%emt 0:00:07]} Nc6 {[%emt 0:00:13]} 5. e4 {[%emt 0:00:06]} Nf6 {[%emt 0:00:03]} 6. Nc3 {[%emt 0:00:06]} d6 {[%emt 0:00:01]} 7. Be2 {[%emt 0:00:07]} Nxd4 {[%emt 0:00:03]} 8. Qxd4 {[%emt 0:00:06]} Bg7 {[%emt 0:00:03]} 9. Bg5 {[%emt 0:00:13]} O-O {[%emt 0:00:04]} 10. Qd2 {[%emt 0:00:05]} a5 {[%emt 0:01:33]} 11. Rd1 {[%emt 0:00:14]} Be6 {[%emt 0:01:14]} 12. b3 {[%emt 0:01:39]} Nd7 {[%emt 0:03:43]} 13. h4 {[%emt 0:01:12]} Nc5 {[%emt 0:00:44]} 14. Bh6 {[%emt 0:09:08]} Bxh6 {[%emt 0:02:14]} 15. Qxh6 {[%emt 0:00:08]} f6 {[%emt 0:00:29]} 16. Qe3 {[%emt 0:22:04]} Qb6 {[%emt 0:03:45]} 17. Nb5 {[%emt 0:11:28]} Bd7 {[%emt 0:13:13]} 18. h5 {[%emt 0:03:32]} g5 {[%emt 0:01:43]} 19. Nc3 {[%emt 0:08:25]} Be6 {[%emt 0:04:30]} 20. Rb1 {[%emt 0:02:00]} Nd7 {[%emt 0:02:47]} 21. Qg3 {[%emt 0:00:40]} Kh8 {[%emt 0:00:47]} 22. O-O {[%emt 0:01:11]} Ne5 {[%emt 0:00:35]} 23. Rfd1 {[%emt 0:02:41]} g4 {[%emt 0:05:00]} 24. Rbc1 {[%emt 0:15:05]} Rg8 {[%emt 0:05:20]} 25. Na4 {[%emt 0:00:30]} Qc6 {[%emt 0:00:07]} 26. Qe3 {[%emt 0:00:32]} Rg5 {[%emt 0:00:52]} 27. c5 {[%emt 0:01:04]} d5 {[%emt 0:04:42]} 28. exd5 {[%emt 0:05:26]} Bxd5 {[%emt 0:00:01]} 29. Rxd5 {[%emt 0:00:11]} Qxd5 {[%emt 0:00:02]} 30. Nb6 {[%emt 0:00:12]} Qg8 {[%emt 0:00:05]} 31. Nxa8 {[%emt 0:00:16]} Qxa8 {[%emt 0:00:02]} 32. h6 {[%emt 0:01:21]} Qf8 {[%emt 0:02:55]} 33. Rd1 {[%emt 0:01:12]} Qxh6 {[%emt 0:10:58]} 34. Rd8+ {[%emt 0:06:26]} Kg7 {[%emt 0:00:01]} 35. Rb8 {[%emt 0:02:14]} Qg6 {[%emt 0:00:01]} 36. Rxb7 {[%emt 0:00:47]} Nc6 {[%emt 0:01:45]} 37. Bd3 {[%emt 0:01:56]} Qh5 {[%emt 0:06:10]} 38. Qe4 {[%emt 0:00:15]} g3 {[%emt 0:01:26]} 39. fxg3 {[%emt 0:04:32]} Qd1+ {[%emt 0:00:01]} 40. Bf1 {[%emt 0:00:12]} Re5 {[%emt 0:00:07]} 41. Qd3 {[%emt 0:00:47]} Qa1 {[%emt 0:01:24]} 42. Rc7 {[%emt 0:00:31]} Nd4 {[%emt 0:01:33]} 43. Rd7 {[%emt 0:00:17]} Ne2+ {[%emt 0:02:07]} 44. Kf2 {[%emt 0:00:08]} Nc1 {[%emt 0:00:03]} 45. Qc2 {[%emt 0:00:53]} Nxa2 {[%emt 0:00:01]} 46. Rd1 {[%emt 0:00:45]} Qc3 {[%emt 0:00:23]} 47. Qxc3 {[%emt 0:00:31]} Nxc3 {[%emt 0:00:01]} 48. Rd7 {[%emt 0:00:29]} Ne4+ {[%emt 0:00:01]} 49. Kg1 {[%emt 0:00:21]} Nxc5 {[%emt 0:00:02]} 50. Rd8 {[%emt 0:00:14]} Nxb3 {[%emt 0:00:12]} 51. Bc4 {[%emt 0:00:06]} Nc5 {[%emt 0:00:01]} 52. Rg8+ {[%emt 0:00:27]} Kh6 {[%emt 0:00:01]} 53. Ra8 {[%emt 0:00:17]} Ne4 {[%emt 0:00:10]} 54. g4 {[%emt 0:00:18]} Kg5 {[%emt 0:00:53]} 55. Be2 {[%emt 0:00:48]} Kf4 {[%emt 0:00:16]} 56. Bf3 {[%emt 0:00:11]} Kg3 {[%emt 0:01:01]} 0-1

[Event "1st Bella Italia International 2022"]
[Site "Lignano"]
[Date "2022.08.18"]
[Round "3.8"]
[White "Micottis, Dorian"]
[Black "Haller, Quentin"]
[Result "1/2-1/2"]
[ECO "B12"]
[WhiteElo "2263"]
[BlackElo "1995"]
[Annotator "NA RC"]
[PlyCount "73"]
[EventDate "2022.08.18"]
[EventCountry "ITA"]
[SourceTitle "playchess.com"]
[Source "ChessBase"]
[SourceQuality "1"]
[TimeControl "5400+30"]

1. e4 {[%emt 0:00:04]} c6 {[%emt 0:00:07]} 2. d4 {[%emt 0:00:05]} d5 {[%emt 0:00:22]} 3. e5 {[%emt 0:00:05]} Bf5 {[%emt 0:00:10]} 4. h4 {[%emt 0:00:06]} h5 {[%emt 0:01:06]} 5. Bd3 {[%emt 0:00:06]} Bxd3 {[%emt 0:00:16]} 6. Qxd3 {[%emt 0:00:06]} e6 {[%emt 0:00:34]} 7. Nf3 {[%emt 0:00:52]} Nh6 {[%emt 0:04:55]} 8. Bg5 {[%emt 0:02:41]} Qb6 {[%emt 0:00:59]} 9. Nbd2 {[%emt 0:01:48]} Nf5 {[%emt 0:02:59]} 10. O-O {[%emt 0:01:58]} Be7 {[%emt 0:09:09]} 11. c4 {[%emt 0:05:49]} Bxg5 {[%emt 0:01:27]} 12. hxg5 {[%emt 0:00:08]} g6 {[%emt 0:02:20]} 13. b3 {[%emt 0:05:48]} Kf8 {[%emt 0:02:21]} 14. Rfd1 {[%emt 0:05:57]} Kg7 {[%emt 0:03:47]} 15. Nf1 {[%emt 0:02:54]} Na6 {[%emt 0:01:43]} 16. Ne3 {[%emt 0:03:30]} Ne7 {[%emt 0:03:20]} 17. g3 {[%emt 0:07:53]} Rhd8 {[%emt 0:08:06]} 18. c5 {[%emt 0:04:08]} Qc7 {[%emt 0:00:48]} 19. Rdb1 {[%emt 0:02:32]} Qd7 {[%emt 0:01:16]} 20. b4 {[%emt 0:00:37]} Nc7 {[%emt 0:00:18]} 21. a4 {[%emt 0:01:12]} a6 {[%emt 0:01:37]} 22. Kg2 {[%emt 0:04:00]} Rh8 {[%emt 0:01:32]} 23. Rb2 {[%emt 0:02:52]} Nf5 {[%emt 0:05:31]} 24. Nh4 {[%emt 0:06:39]} Ne7 {[%emt 0:03:43]} 25. Nd1 {[%emt 0:06:49]} Rhb8 {[%emt 0:03:31]} 26. Rab1 {[%emt 0:00:43]} b5 {[%emt 0:01:58]} 27. cxb6 {[%emt 0:04:11]} Rxb6 {[%emt 0:00:11]} 28. Nc3 {[%emt 0:00:06]} Rab8 {[%emt 0:01:32]} 29. a5 {[%emt 0:00:53]} R6b7 {[%emt 0:02:10]} 30. Na4 {[%emt 0:00:06]} Qd8 {[%emt 0:01:11]} 31. Nc5 {[%emt 0:02:47]} Rb5 {[%emt 0:01:32]} 32. Rb3 {[%emt 0:04:01]} Nf5 {[%emt 0:04:05]} 33. Nxf5+ {[%emt 0:04:33]} exf5 {[%emt 0:00:29]} 34. f4 {[%emt 0:00:15]} Qc8 {[%emt 0:06:46]} 35. Qc3 {[%emt 0:00:15]} Ne6 {[%emt 0:01:38]} 36. Na4 {[%emt 0:10:22]} Qb7 {[%emt 0:05:08]} 37. Nc5 {[%emt 0:02:51]} 1/2-1/2

[Event "1st Bella Italia International 2022"]
[Site "Lignano"]
[Date "2022.08.18"]
[Round "3.9"]
[White "Tencati, Giuseppe"]
[Black "Gelle, Istvan"]
[Result "1-0"]
[ECO "D15"]
[WhiteElo "2055"]
[BlackElo "2218"]
[Annotator "NA RC"]
[PlyCount "105"]
[EventDate "2022.08.18"]
[EventCountry "ITA"]
[SourceTitle "playchess.com"]
[Source "ChessBase"]
[SourceQuality "1"]
[TimeControl "5400+30"]

1. d4 {[%emt 0:00:02]} d5 {[%emt 0:00:09]} 2. c4 {[%emt 0:00:07]} c6 {[%emt 0:00:06]} 3. Nc3 {[%emt 0:00:07]} Nf6 {[%emt 0:00:11]} 4. e3 {[%emt 0:00:57]} a6 {[%emt 0:01:01]} 5. Nf3 {[%emt 0:01:24]} Bf5 {[%emt 0:03:17]} 6. Qb3 {[%emt 0:03:59]} Ra7 {[%emt 0:03:27]} 7. Nh4 {[%emt 0:02:36]} Be6 {[%emt 0:06:02]} 8. c5 {[%emt 0:02:33]} g6 {[%emt 0:10:09]} 9. Bd3 {[%emt 0:02:38]} Ne4 {[%emt 0:13:27]} 10. Qc2 {[%emt 0:05:39]} f5 {[%emt 0:03:03]} 11. f4 {[%emt 0:06:04]} Bg7 {[%emt 0:04:20]} 12. Nf3 {[%emt 0:00:24]} O-O {[%emt 0:01:50]} 13. Bd2 {[%emt 0:00:17]} Nd7 {[%emt 0:00:53]} 14. Na4 {[%emt 0:01:44]} a5 {[%emt 0:10:29]} 15. O-O {[%emt 0:00:32]} Kh8 {[%emt 0:01:03]} 16. Rab1 {[%emt 0:04:58]} Bg8 {[%emt 0:01:07]} 17. Be1 {[%emt 0:11:33]} Bf6 {[%emt 0:02:30]} 18. Bh4 {[%emt 0:04:04]} h6 {[%emt 0:04:43]} 19. Bxf6+ {[%emt 0:00:16]} exf6 {[%emt 0:00:17]} 20. g3 {[%emt 0:18:33]} Bh7 {[%emt 0:10:34]} 21. Rbe1 {[%emt 0:12:51]} Ra8 {[%emt 0:02:31]} 22. Nd2 {[%emt 0:02:25]} Qc7 {[%emt 0:05:52]} 23. Be2 {[%emt 0:02:00]} Rfe8 {[%emt 0:01:48]} 24. Bf3 {[%emt 0:00:17]} Re7 {[%emt 0:02:06]} 25. Re2 {[%emt 0:02:04]} Rae8 {[%emt 0:01:06]} 26. Rfe1 {[%emt 0:10:49]} Kg7 {[%emt 0:01:47]} 27. Kg2 {[%emt 0:00:49]} g5 {[%emt 0:03:17]} 28. Kg1 {[%emt 0:00:32]} Bg6 {[%emt 0:00:47]} 29. Nxe4 {[%emt 0:01:58]} fxe4 {[%emt 0:01:43]} 30. Bg4 {[%emt 0:00:50]} f5 {[%emt 0:01:08]} 31. Bh3 {[%emt 0:00:02]} Rf8 {[%emt 0:02:13]} 32. Rf2 {[%emt 0:00:23]} Rf6 {[%emt 0:01:39]} 33. Qd1 {[%emt 0:00:56]} Ref7 {[%emt 0:00:37]} 34. Ref1 {[%emt 0:00:17]} b5 {[%emt 0:00:41]} 35. cxb6 {[%emt 0:00:12]} Nxb6 {[%emt 0:00:04]} 36. Nxb6 {[%emt 0:00:54]} Qxb6 {[%emt 0:00:04]} 37. Qc2 {[%emt 0:00:14]} Bh5 {[%emt 0:01:13]} 38. fxg5 {[%emt 0:00:27]} hxg5 {[%emt 0:00:04]} 39. Rxf5 {[%emt 0:01:04]} Rxf5 {[%emt 0:01:26]} 40. Rxf5 {[%emt 0:00:01]} Rxf5 {[%emt 0:00:47]} 41. Bxf5 {[%emt 0:00:02]} Be8 {[%emt 0:00:47]} 42. Bg4 {[%emt 0:01:05]} Qb4 {[%emt 0:00:20]} 43. Qc3 {[%emt 0:00:29]} Qb5 {[%emt 0:00:43]} 44. Qd2 {[%emt 0:00:42]} c5 {[%emt 0:00:32]} 45. dxc5 {[%emt 0:00:19]} Qxc5 {[%emt 0:00:05]} 46. Qc3+ {[%emt 0:00:44]} Qxc3 {[%emt 0:00:05]} 47. bxc3 {[%emt 0:00:06]} Kf6 {[%emt 0:00:53]} 48. Kf2 {[%emt 0:00:18]} Bb5 {[%emt 0:00:31]} 49. Be2 {[%emt 0:01:11]} Bd7 {[%emt 0:00:51]} 50. h4 {[%emt 0:00:49]} g4 {[%emt 0:00:41]} 51. Ke1 {[%emt 0:00:30]} Kf5 {[%emt 0:00:26]} 52. Kd2 {[%emt 0:00:21]} Ba4 {[%emt 0:00:26]} 53. c4 {[%emt 0:00:23]} 1-0

[Event "1st Bella Italia International 2022"]
[Site "Lignano"]
[Date "2022.08.18"]
[Round "3.10"]
[White "Titze, Leo"]
[Black "Rotolante, Luca"]
[Result "1-0"]
[ECO "C00"]
[WhiteElo "2071"]
[BlackElo "2010"]
[Annotator "NA RC"]
[PlyCount "111"]
[EventDate "2022.08.18"]
[EventCountry "ITA"]
[SourceTitle "playchess.com"]
[Source "ChessBase"]
[SourceQuality "1"]
[TimeControl "5400+30"]

1. e4 {[%emt 0:06:04]} e6 {[%emt 0:00:11]} 2. d3 {[%emt 0:00:24]} d5 {[%emt 0:00:10]} 3. Nd2 {[%emt 0:00:05]} c5 {[%emt 0:00:13]} 4. g3 {[%emt 0:00:43]} Nc6 {[%emt 0:00:11]} 5. Bg2 {[%emt 0:00:46]} Nf6 {[%emt 0:00:16]} 6. Ngf3 {[%emt 0:00:27]} dxe4 {[%emt 0:01:17]} 7. dxe4 {[%emt 0:00:36]} g6 {[%emt 0:02:10]} 8. O-O {[%emt 0:01:51]} Bg7 {[%emt 0:00:12]} 9. c3 {[%emt 0:00:29]} O-O {[%emt 0:00:11]} 10. Qe2 {[%emt 0:00:51]} e5 {[%emt 0:01:02]} 11. Rd1 {[%emt 0:04:20]} Qc7 {[%emt 0:00:28]} 12. Nf1 {[%emt 0:00:55]} Be6 {[%emt 0:05:13]} 13. Ng5 {[%emt 0:04:50]} Bg4 {[%emt 0:00:11]} 14. f3 {[%emt 0:00:14]} Bd7 {[%emt 0:00:04]} 15. Nh3 {[%emt 0:03:28]} Rad8 {[%emt 0:02:30]} 16. Be3 {[%emt 0:03:32]} b6 {[%emt 0:00:40]} 17. Nf2 {[%emt 0:02:50]} Be6 {[%emt 0:01:16]} 18. b3 {[%emt 0:03:32]} a5 {[%emt 0:02:06]} 19. Qc2 {[%emt 0:01:35]} Qc8 {[%emt 0:03:39]} 20. Nd2 {[%emt 0:04:02]} Rd7 {[%emt 0:04:15]} 21. Bf1 {[%emt 0:01:28]} Rfd8 {[%emt 0:00:18]} 22. Bc4 {[%emt 0:05:53]} Bxc4 {[%emt 0:07:03]} 23. Nxc4 {[%emt 0:00:24]} Qc7 {[%emt 0:00:03]} 24. a4 {[%emt 0:00:41]} Ne8 {[%emt 0:00:42]} 25. Rxd7 {[%emt 0:09:03]} Rxd7 {[%emt 0:00:06]} 26. Rd1 {[%emt 0:01:01]} Nd6 {[%emt 0:01:10]} 27. Qd3 {[%emt 0:03:51]} Bf8 {[%emt 0:00:38]} 28. Bg5 {[%emt 0:02:00]} h5 {[%emt 0:08:23]} 29. Bf6 {[%emt 0:01:40]} Qb7 {[%emt 0:07:14]} 30. Nxe5 {[%emt 0:08:21]} Nxe5 {[%emt 0:01:20]} 31. Bxe5 {[%emt 0:00:07]} Rd8 {[%emt 0:00:14]} 32. Bxd6 {[%emt 0:07:21]} Rxd6 {[%emt 0:00:07]} 33. Qc4 {[%emt 0:01:48]} Qd7 {[%emt 0:01:16]} 34. Rxd6 {[%emt 0:01:13]} Qxd6 {[%emt 0:00:07]} 35. Qd5 {[%emt 0:00:28]} Qf6 {[%emt 0:01:10]} 36. e5 {[%emt 0:01:20]} Qf5 {[%emt 0:00:07]} 37. Ne4 {[%emt 0:00:42]} Be7 {[%emt 0:01:39]} 38. Kg2 {[%emt 0:05:51]} Kg7 {[%emt 0:01:00]} 39. h4 {[%emt 0:02:22]} g5 {[%emt 0:04:20]} 40. hxg5 {[%emt 0:00:09]} Bxg5 {[%emt 0:00:05]} 41. Qd6 {[%emt 0:02:57]} h4 {[%emt 0:01:06]} 42. Nxg5 {[%emt 0:00:30]} Qxg5 {[%emt 0:00:40]} 43. Qf6+ {[%emt 0:00:07]} Qxf6 {[%emt 0:00:05]} 44. exf6+ {[%emt 0:00:01]} Kxf6 {[%emt 0:00:46]} 45. gxh4 {[%emt 0:00:05]} Kg6 {[%emt 0:01:36]} 46. Kh3 {[%emt 0:01:59]} Kh5 {[%emt 0:05:12]} 47. Kg3 {[%emt 0:00:48]} Kh6 {[%emt 0:00:45]} 48. Kg4 {[%emt 0:00:23]} Kg6 {[%emt 0:00:24]} 49. h5+ {[%emt 0:00:24]} Kh6 {[%emt 0:00:45]} 50. f4 {[%emt 0:00:14]} Kg7 {[%emt 0:04:15]} 51. Kg5 {[%emt 0:11:15]} Kh7 {[%emt 0:01:55]} 52. Kf6 {[%emt 0:00:00]} Kh6 {[%emt 0:00:44]} 53. Kxf7 {[%emt 0:00:00]} Kxh5 {[%emt 0:00:04]} 54. Ke6 {[%emt 0:00:00]} Kg4 {[%emt 0:00:06]} 55. f5 {[%emt 0:00:00]} Kf4 {[%emt 0:00:05]} 56. f6 {[%emt 0:00:00]} 1-0

[Event "1st Bella Italia International 2022"]
[Site "Lignano"]
[Date "2022.08.18"]
[Round "3.11"]
[White "Brotto, Alessandro"]
[Black "Lapiccirella, Daniele"]
[Result "0-1"]
[ECO "B40"]
[WhiteElo "2027"]
[BlackElo "2173"]
[Annotator "NA RC"]
[PlyCount "66"]
[EventDate "2022.08.18"]
[EventCountry "ITA"]
[SourceTitle "playchess.com"]
[Source "ChessBase"]
[SourceQuality "1"]
[TimeControl "5400+30"]

1. e4 {[%emt 0:04:05]} c5 {[%emt 0:00:06]} 2. Nf3 {[%emt 0:00:34]} e6 {[%emt 0:00:05]} 3. Bd3 {[%emt 0:05:49]} d5 {[%emt 0:08:30]} 4. O-O {[%emt 0:00:37]} dxe4 {[%emt 0:01:04]} 5. Bxe4 {[%emt 0:00:38]} Nf6 {[%emt 0:00:07]} 6. c3 {[%emt 0:12:53]} Nxe4 {[%emt 0:04:16]} 7. Qa4+ {[%emt 0:00:13]} Bd7 {[%emt 0:00:02]} 8. Qxe4 {[%emt 0:00:13]} Bc6 {[%emt 0:00:04]} 9. Qe2 {[%emt 0:02:33]} Nd7 {[%emt 0:20:14]} 10. d4 {[%emt 0:06:06]} Be7 {[%emt 0:00:25]} 11. Nbd2 {[%emt 0:02:59]} O-O {[%emt 0:00:27]} 12. Rd1 {[%emt 0:09:47]} Qc7 {[%emt 0:08:31]} 13. Nb3 {[%emt 0:04:04]} cxd4 {[%emt 0:13:56]} 14. cxd4 {[%emt 0:03:28]} Bf6 {[%emt 0:00:45]} 15. Be3 {[%emt 0:03:22]} b6 {[%emt 0:00:08]} 16. Rac1 {[%emt 0:02:13]} Qb7 {[%emt 0:00:07]} 17. Ne1 {[%emt 0:00:26]} Rac8 {[%emt 0:01:13]} 18. f3 {[%emt 0:07:00]} Bd5 {[%emt 0:00:41]} 19. Nd3 {[%emt 0:02:05]} Bxb3 {[%emt 0:04:56]} 20. axb3 {[%emt 0:00:10]} Rxc1 {[%emt 0:00:21]} 21. Rxc1 {[%emt 0:01:29]} Qd5 {[%emt 0:04:29]} 22. Rc7 {[%emt 0:10:34]} Bxd4 {[%emt 0:00:53]} 23. Rxa7 {[%emt 0:04:13]} Nc5 {[%emt 0:02:21]} 24. Nxc5 {[%emt 0:01:27]} bxc5 {[%emt 0:00:14]} 25. Qd3 {[%emt 0:02:00]} e5 {[%emt 0:08:03]} 26. Kf1 {[%emt 0:02:07]} Rb8 {[%emt 0:00:41]} 27. Ra4 {[%emt 0:07:54]} h6 {[%emt 0:01:23]} 28. Rc4 {[%emt 0:00:27]} f5 {[%emt 0:03:16]} 29. b4 {[%emt 0:01:28]} Rxb4 {[%emt 0:03:46]} 30. Rxb4 {[%emt 0:00:24]} cxb4 {[%emt 0:00:05]} 31. f4 {[%emt 0:03:13]} Qe4 {[%emt 0:01:07]} 32. Qxe4 {[%emt 0:00:12]} fxe4 {[%emt 0:00:04]} 33. Bd2 {[%emt 0:00:50]} b3 {[%emt 0:01:06]} 0-1

[Event "1st Bella Italia International 2022"]
[Site "Lignano"]
[Date "2022.08.18"]
[Round "3.12"]
[White "Cino, Giuseppe Adalberto"]
[Black "Zuttioni, Federico"]
[Result "1-0"]
[ECO "D30"]
[WhiteElo "1976"]
[BlackElo "2161"]
[Annotator "NA RC"]
[PlyCount "81"]
[EventDate "2022.08.18"]
[EventCountry "ITA"]
[SourceTitle "playchess.com"]
[Source "ChessBase"]
[SourceQuality "1"]
[TimeControl "5400+30"]

1. c4 {[%emt 0:06:00]} e6 {[%emt 0:02:05]} 2. Nf3 {[%emt 0:00:34]} d5 {[%emt 0:00:41]} 3. e3 {[%emt 0:00:40]} Nf6 {[%emt 0:00:26]} 4. d4 {[%emt 0:00:08]} Be7 {[%emt 0:00:54]} 5. Bd3 {[%emt 0:00:29]} O-O {[%emt 0:01:15]} 6. O-O {[%emt 0:00:05]} b6 {[%emt 0:01:16]} 7. Re1 {[%emt 0:00:24]} dxc4 {[%emt 0:08:57]} 8. Bxc4 {[%emt 0:00:17]} Bb7 {[%emt 0:00:25]} 9. Nc3 {[%emt 0:00:10]} c5 {[%emt 0:03:11]} 10. e4 {[%emt 0:04:22]} cxd4 {[%emt 0:22:22]} 11. Qxd4 {[%emt 0:01:19]} Nc6 {[%emt 0:14:24]} 12. Qd1 {[%emt 0:10:33]} Qxd1 {[%emt 0:17:09]} 13. Rxd1 {[%emt 0:00:29]} Rfd8 {[%emt 0:02:09]} 14. Bf4 {[%emt 0:04:14]} Rac8 {[%emt 0:00:58]} 15. e5 {[%emt 0:08:39]} Nd7 {[%emt 0:02:08]} 16. Be2 {[%emt 0:00:51]} Nb4 {[%emt 0:05:54]} 17. Nd4 {[%emt 0:02:30]} Nc5 {[%emt 0:01:39]} 18. a3 {[%emt 0:02:13]} Nbd3 {[%emt 0:00:18]} 19. Bxd3 {[%emt 0:02:44]} Rxd4 {[%emt 0:01:06]} 20. Bxh7+ {[%emt 0:01:12]} Kxh7 {[%emt 0:00:02]} 21. Rxd4 {[%emt 0:00:06]} Nb3 {[%emt 0:00:44]} 22. Rd7 {[%emt 0:00:10]} Nxa1 {[%emt 0:09:09]} 23. Rxe7 {[%emt 0:00:31]} Bc6 {[%emt 0:00:37]} 24. Rxf7 {[%emt 0:00:50]} a5 {[%emt 0:01:55]} 25. h3 {[%emt 0:00:57]} b5 {[%emt 0:01:03]} 26. Re7 {[%emt 0:00:56]} b4 {[%emt 0:00:19]} 27. axb4 {[%emt 0:11:32]} axb4 {[%emt 0:00:03]} 28. Ne2 {[%emt 0:00:16]} Bd5 {[%emt 0:00:07]} 29. Bg5 {[%emt 0:01:01]} Kg6 {[%emt 0:03:11]} 30. h4 {[%emt 0:00:13]} Rc2 {[%emt 0:00:19]} 31. Nf4+ {[%emt 0:01:02]} Kf5 {[%emt 0:00:30]} 32. Rxg7 {[%emt 0:00:40]} Rxb2 {[%emt 0:00:35]} 33. Rf7+ {[%emt 0:00:12]} Ke4 {[%emt 0:00:08]} 34. f3+ {[%emt 0:02:30]} Kd4 {[%emt 0:00:14]} 35. Nxd5 {[%emt 0:01:55]} Rb1+ {[%emt 0:00:33]} 36. Kh2 {[%emt 0:00:13]} Kxd5 {[%emt 0:00:12]} 37. h5 {[%emt 0:00:27]} b3 {[%emt 0:00:56]} 38. h6 {[%emt 0:00:05]} b2 {[%emt 0:00:51]} 39. Rb7 {[%emt 0:00:07]} Kc6 {[%emt 0:00:11]} 40. Rb8 {[%emt 0:01:15]} Kc7 {[%emt 0:00:21]} 41. h7 {[%emt 0:00:16]} 1-0

[Event "1st Bella Italia International 2022"]
[Site "Lignano"]
[Date "2022.08.18"]
[Round "3.13"]
[White "Player, Edmund C"]
[Black "Bartolozzi, Roberto"]
[Result "1-0"]
[ECO "C06"]
[WhiteElo "2202"]
[BlackElo "1967"]
[Annotator "NA RC"]
[PlyCount "87"]
[EventDate "2022.08.18"]
[EventCountry "ITA"]
[SourceTitle "playchess.com"]
[Source "ChessBase"]
[SourceQuality "1"]
[TimeControl "5400+30"]

1. e4 {[%emt 0:02:41]} e6 {[%emt 0:00:09]} 2. d4 {[%emt 0:00:14]} d5 {[%emt 0:00:08]} 3. Nd2 {[%emt 0:00:58]} Nf6 {[%emt 0:00:09]} 4. e5 {[%emt 0:00:05]} Nfd7 {[%emt 0:00:11]} 5. Bd3 {[%emt 0:00:10]} c5 {[%emt 0:00:36]} 6. c3 {[%emt 0:00:14]} Nc6 {[%emt 0:01:06]} 7. Ne2 {[%emt 0:00:06]} cxd4 {[%emt 0:00:05]} 8. cxd4 {[%emt 0:00:06]} f6 {[%emt 0:00:07]} 9. exf6 {[%emt 0:00:08]} Nxf6 {[%emt 0:00:07]} 10. Nf3 {[%emt 0:00:34]} Bd6 {[%emt 0:00:30]} 11. O-O {[%emt 0:01:56]} Qc7 {[%emt 0:01:51]} 12. Bd2 {[%emt 0:02:51]} O-O {[%emt 0:00:36]} 13. Ng3 {[%emt 0:00:50]} Bd7 {[%emt 0:07:23]} 14. Re1 {[%emt 0:03:37]} Rae8 {[%emt 0:13:34]} 15. Bc3 {[%emt 0:07:19]} e5 {[%emt 0:08:06]} 16. dxe5 {[%emt 0:02:44]} Nxe5 {[%emt 0:00:18]} 17. Nxe5 {[%emt 0:05:14]} Bxe5 {[%emt 0:00:11]} 18. Bxe5 {[%emt 0:10:34]} Rxe5 {[%emt 0:00:17]} 19. Rc1 {[%emt 0:00:25]} Rxe1+ {[%emt 0:02:14]} 20. Qxe1 {[%emt 0:00:03]} Qf4 {[%emt 0:00:58]} 21. Rc2 {[%emt 0:04:33]} Re8 {[%emt 0:05:09]} 22. Qc1 {[%emt 0:08:41]} Qb4 {[%emt 0:03:31]} 23. Qd2 {[%emt 0:08:45]} Qh4 {[%emt 0:11:00]} 24. h3 {[%emt 0:09:12]} Bc6 {[%emt 0:03:39]} 25. Nf5 {[%emt 0:01:49]} Qh5 {[%emt 0:07:41]} 26. Rc1 {[%emt 0:06:34]} Ne4 {[%emt 0:06:53]} 27. Bxe4 {[%emt 0:00:59]} dxe4 {[%emt 0:02:47]} 28. Rc5 {[%emt 0:08:38]} Qg6 {[%emt 0:02:06]} 29. Ne3 {[%emt 0:02:45]} Qe6 {[%emt 0:03:45]} 30. a3 {[%emt 0:01:24]} Qe7 {[%emt 0:01:16]} 31. Rc4 {[%emt 0:00:50]} Rd8 {[%emt 0:01:37]} 32. Rd4 {[%emt 0:00:05]} Rxd4 {[%emt 0:00:50]} 33. Qxd4 {[%emt 0:00:02]} Qd7 {[%emt 0:00:57]} 34. Qxa7 {[%emt 0:01:02]} h6 {[%emt 0:00:43]} 35. Qa5 {[%emt 0:02:15]} Qd3 {[%emt 0:01:05]} 36. Qe5 {[%emt 0:00:51]} Qd7 {[%emt 0:03:54]} 37. Kh2 {[%emt 0:00:53]} Qf7 {[%emt 0:00:36]} 38. Kg1 {[%emt 0:01:52]} Kh8 {[%emt 0:00:22]} 39. Nf5 {[%emt 0:00:29]} Bd7 {[%emt 0:00:35]} 40. Nd6 {[%emt 0:01:22]} Qg6 {[%emt 0:01:06]} 41. Kh2 {[%emt 0:00:38]} e3 {[%emt 0:01:27]} 42. fxe3 {[%emt 0:00:27]} Bc6 {[%emt 0:00:28]} 43. e4 {[%emt 0:00:15]} h5 {[%emt 0:00:49]} 44. b4 {[%emt 0:01:34]} 1-0

[Event "1st Bella Italia International 2022"]
[Site "Lignano"]
[Date "2022.08.18"]
[Round "3.14"]
[White "Giraldi, Edoardo"]
[Black "Bommini Mounika Akshaya"]
[Result "0-1"]
[ECO "B51"]
[WhiteElo "1909"]
[BlackElo "2107"]
[Annotator "NA RC"]
[PlyCount "74"]
[EventDate "2022.08.18"]
[EventCountry "ITA"]
[SourceTitle "playchess.com"]
[Source "ChessBase"]
[SourceQuality "1"]
[TimeControl "5400+30"]

1. e4 {[%emt 0:01:17]} c5 {[%emt 0:04:42]} 2. Nf3 {[%emt 0:00:47]} d6 {[%emt 0:00:06]} 3. Bb5+ {[%emt 0:00:07]} Nd7 {[%emt 0:00:09]} 4. d4 {[%emt 0:01:10]} cxd4 {[%emt 0:00:10]} 5. Qxd4 {[%emt 0:00:18]} Ngf6 {[%emt 0:00:09]} 6. O-O {[%emt 0:02:30]} g6 {[%emt 0:01:14]} 7. c4 {[%emt 0:13:49]} Bg7 {[%emt 0:01:11]} 8. Bxd7+ {[%emt 0:00:23]} Bxd7 {[%emt 0:00:39]} 9. Nc3 {[%emt 0:02:16]} O-O {[%emt 0:00:15]} 10. Qd3 {[%emt 0:09:57]} Rc8 {[%emt 0:08:38]} 11. Re1 {[%emt 0:06:06]} Qc7 {[%emt 0:10:24]} 12. b3 {[%emt 0:04:57]} b5 {[%emt 0:04:55]} 13. Nxb5 {[%emt 0:13:54]} Bxb5 {[%emt 0:00:09]} 14. cxb5 {[%emt 0:00:07]} Nxe4 {[%emt 0:01:56]} 15. Nd4 {[%emt 0:01:50]} Nc5 {[%emt 0:06:12]} 16. Qc4 {[%emt 0:14:35]} d5 {[%emt 0:02:32]} 17. Qc3 {[%emt 0:00:48]} Qb6 {[%emt 0:23:07]} 18. Qe3 {[%emt 0:04:34]} Na4 {[%emt 0:11:26]} 19. Nc6 {[%emt 0:09:14]} Rxc6 {[%emt 0:00:19]} 20. bxc6 {[%emt 0:00:06]} Bxa1 {[%emt 0:00:13]} 21. bxa4 {[%emt 0:00:15]} Bd4 {[%emt 0:00:07]} 22. Qe2 {[%emt 0:05:40]} e6 {[%emt 0:00:14]} 23. Ba3 {[%emt 0:06:20]} Rc8 {[%emt 0:00:21]} 24. Rc1 {[%emt 0:00:32]} Rxc6 {[%emt 0:00:55]} 25. Rxc6 {[%emt 0:00:38]} Qxc6 {[%emt 0:00:02]} 26. g3 {[%emt 0:00:40]} Qxa4 {[%emt 0:00:15]} 27. Bd6 {[%emt 0:00:19]} Qc4 {[%emt 0:02:54]} 28. Qd2 {[%emt 0:00:22]} Qc3 {[%emt 0:01:25]} 29. Qf4 {[%emt 0:00:40]} Qe1+ {[%emt 0:00:29]} 30. Kg2 {[%emt 0:00:28]} Qe4+ {[%emt 0:00:29]} 31. Qxe4 {[%emt 0:00:24]} dxe4 {[%emt 0:00:01]} 32. Kf1 {[%emt 0:00:12]} f5 {[%emt 0:00:36]} 33. Ke2 {[%emt 0:00:09]} Kf7 {[%emt 0:00:14]} 34. h4 {[%emt 0:00:23]} e5 {[%emt 0:00:14]} 35. f3 {[%emt 0:00:46]} exf3+ {[%emt 0:00:16]} 36. Kxf3 {[%emt 0:00:06]} Ke6 {[%emt 0:00:06]} 37. Bb4 {[%emt 0:01:00]} Kd5 {[%emt 0:00:06]} 0-1